{"text_format":"1","workbook":"xlsx","n_sheets":7,"sheets":["Cover","Beschreibung","Aufstellung","Checkliste","Nutzwertanalyse","TreeView","Baumstruktur"],"not_rendered":{"charts":0,"images":0,"macros":1,"external_links":0,"defined_names":2,"comments":0,"pivot_tables":0},"unopened":[],"bounds":{"document_bytes":16777216,"sheet_cells":100000,"rows_first":2000,"rows_last":500,"rows_between":2000,"halvings":0,"cell_chars":16384,"cell_head_chars":4096},"cells_cut":0,"cells_raw":0,"read":"whole","date_system":"1900"}

{"sheet":"Cover","index":0,"n_rows":22,"n_cols":3,"rows_kept":22,"cut":false,"hidden":false,"merged":[]}
[]
[]
[null,"Excel + VBA"]
[]
[]
[null,"Kapitel",14]
[null,"Thema","Technische Dokumentation"]
[]
[null,"Inhalt","Informationsmatrix"]
[null,null,"Relationale Datenbank"]
[null,null,"Entity-Relationship-Model"]
[null,null,"Technische Darstellungen"]
[null,null,"Visualisierung von Daten"]
[]
[]
[]
[null,"Autor","Harald Nahrstedt"]
[null,"Datum","2017-03-01"]
[null,"Version","5.0"]
[]
[]
[null,"Springer Vieweg Verlag"]

{"sheet":"Beschreibung","index":1,"n_rows":7,"n_cols":3,"rows_kept":7,"cut":false,"hidden":false,"merged":[]}
["Lfd.Nr.","Beschreibung ","Typ"]
[1,"Eine Technische Dokumentation enthält","Kommentar"]
[2,"Beschreibungen","Anforderung"]
[3,"Aufstellungen","Anforderung"]
[4,"Checklisten","Wunsch"]
[5,"Technische Darstellungen","Wunsch"]
[6,"Berechnungen","Anforderung"]

{"sheet":"Aufstellung","index":2,"n_rows":10,"n_cols":5,"rows_kept":10,"cut":false,"hidden":false,"merged":[]}
["Lfd.Nr.\n","Datei\n","Kapitel\n","Size [KB]\n","Link\n"]
[1,"Beispiele zum Kapitel 4",4,296,"..\\Beispiele_zum_Kapitel_04_2.docx"]
[2,"Beispiele zum Kapitel 5",5,102,"..\\Beispiele_zum_Kapitel_05_2.docx"]
[3,"Bilder Kapitel 1",1,812,"..\\Bilder_Kapitel_01.vsd"]
[4,"Bilder Kapitel 2",2,675,"..\\Bilder_Kapitel_02.vsd"]
[5,"Bilder Kapitel 3",3,711,"..\\Bilder_Kapitel_03.vsd"]
[6,"Bilder Kapitel 4",4,588,"..\\Bilder_Kapitel_04.vsd"]
[null,"Kapitel 2 - Berechnungen aus der Statik",2,6818,"..\\Kapitel 02_2_Berechnungen_aus_der_Statik.doc"]
[null,"Kapitel 3 - Berechnungen aus der Dynamik",3,2470,"..\\Kapitel 03_2_Berechnungen_aus_der_Dynamik.doc"]
[null,"Kapitel 4 - Festigkeitsberechnungen",4,1382,"..\\Kapitel 04_2_Festigkeitsberechnungen.doc"]

{"sheet":"Checkliste","index":3,"n_rows":5,"n_cols":6,"rows_kept":5,"cut":false,"hidden":false,"merged":[]}
["Lfd.Nr.\n","Datei\n","Kapitel\n","Size [KB]\n","Link\n","Zustand\n"]
[1,"Einführung in VBA\n",1,9340,"..\\Kapitel 01_2_Einführung_in_VBA.doc",70]
[2,"Berechnungen aus der Statik\n",2,6818,"..\\Kapitel 02_2_Berechnungen_aus_der_Statik.doc",100]
[3,"Berechnungen aus der Dynamik\n",3,2470,"..\\Kapitel 03_2_Berechnungen_aus_der_Dynamik.doc",10]
[4,"Festigkeitsberechnungen\n",4,1382,"..\\Kapitel 04_2_Festigkeitsberechnungen.doc",100]

{"sheet":"Nutzwertanalyse","index":4,"n_rows":10,"n_cols":10,"rows_kept":10,"cut":false,"hidden":false,"merged":[]}
[]
[null,"Gewichtung\n[G]","Maschine\nA","G x A","Maschine\nB","G x B","Maschine\nC","G x C","Maschine\nD","G x D"]
["Preis",7,3,{"$f":"B3*C3","v":21},8,{"$f":"B3*E3","v":56},8,{"$f":"B3*G3","v":56},5,{"$f":"B3*I3","v":35}]
["Bedienerfreundlichkeit",3,8,{"$f":"B4*C4","v":24},2,{"$f":"B4*E4","v":6},4,{"$f":"B4*G4","v":12},3,{"$f":"B4*I4","v":9}]
["Energieverbrauch",6,8,48,2,12,4,24,2,12]
["Stückzahl-Leistung",8,9,72,4,32,5,40,8,64]
["Schallpegel",4,5,20,2,8,5,20,6,24]
["Wartungsfreundlichkeit",5,6,30,3,15,2,10,4,20]
["Design",2,7,14,6,12,4,8,5,10]
["Ergebnis",null,null,{"$f":"SUM(D3:D9)","v":229},null,{"$f":"SUM(F3:F9)","v":141},null,{"$f":"SUM(H3:H9)","v":170},null,{"$f":"SUM(J3:J9)","v":174}]

{"sheet":"TreeView","index":5,"n_rows":1,"n_cols":1,"rows_kept":1,"cut":false,"hidden":false,"merged":[]}
["F:\\01_Eigene Daten\\01_Technik\\01_Bücher\\06_Excel + VBA\\5. Auflage"]

{"sheet":"Baumstruktur","index":6,"n_rows":0,"n_cols":0,"rows_kept":0,"cut":false,"hidden":false,"merged":[]}